bitfinex-derivatives/quotes_ETHF0:USTF0_20241020
["timestamp","ask_amount","ask_price","bid_price","bid_amount"]
[1729461629192,2.69667536,2718.8,2718.7,0.36787]
[1729461630398,2.69667536,2718.8,2718.1,3.2078]
[1729461630399,2.5126,2718.8,2718.1,3.2078]
[1729461630599,2.5126,2718.8,2718.2,0.948]
[1729461630804,2.5126,2718.8,2718.6,0.36788]
[1729461631400,2.5126,2718.8,2718.6,1.31588]
[1729461631815,4.40873006,2719.0,2718.9,0.36785]
[1729461631816,1.91843006,2719.0,2718.9,0.36785]
[1729461632004,3.2078,2719.1,2718.9,0.36785]
[1729461632005,7.8938,2719.1,2718.9,0.36785]
[1729461632505,2.40102737,2719.5,2719.0,3.6776]
[1729461632506,3.2078,2719.5,2719.0,3.6776]
[1729461632710,8.18501112,2720.3,2719.2,0.02347284]
[1729461632711,2.3134,2719.9,2719.2,0.02347284]
[1729461633010,2.3134,2719.9,2719.8,0.36772]
[1729461633199,2.3134,2719.9,2719.8,1.31572]
[1729461633397,2.4956,2720.5,2719.8,0.948]
[1729461633603,1.91843006,2720.8,2720.1,3.2078]
[1729461633907,0.19645075,2721.3,2721.1,0.36755]
[1729461634103,0.05045075,2721.3,2721.2,0.948]
[1729461634299,0.05045075,2721.3,2721.2,4.98994]
[1729461634499,3.36372962,2722.9,2721.2,4.98994]
[1729461634500,0.65932484,2723.1,2723.0,0.36729]
[1729461634704,2.3859389,2723.9,2723.0,1.94465679]
[1729461634914,4.60122,2726.1,2723.8,3.2078]
[1729461634915,1.90885665,2724.1,2723.8,3.2078]
[1729461635099,3.41853125,2724.9,2723.8,3.2078]
[1729461635100,1.90885665,2724.2,2723.8,3.2078]
[1729461635298,1.90885665,2724.2,2723.4,0.02347284]
[1729461635299,0.21073125,2724.9,2724.1,3.2078]
[1729461635496,0.21073125,2724.9,2724.7,3.2078]
[1729461635497,0.02573125,2724.9,2724.7,3.2078]
[1729461635702,1.9345879,2724.9,2724.7,3.2078]
[1729461635901,1.9345879,2724.9,2724.8,0.02347284]
[1729461635902,0.02573125,2724.9,2724.8,0.02347284]
[1729461636101,0.02573125,2724.9,2724.8,0.0496136]
[1729461636700,0.02573125,2724.9,2724.8,3.72005428]
[1729461636909,0.02573125,2724.9,2724.8,0.05045428]
[1729461637502,0.02573125,2724.9,2724.8,7.94729328]
[1729461637703,1.9345879,2724.9,2724.8,0.05045428]
[1729461638710,0.02573125,2724.9,2724.8,0.05045428]
[1729461643616,0.02573125,2724.9,2724.8,0.34409428]
[1729461643912,0.02573125,2724.9,2724.8,0.05045428]
[1729461647010,1.9345879,2724.9,2724.8,0.05045428]
[1729461650017,2.2282179,2724.9,2724.8,0.05045428]
[1729461650309,1.9345879,2724.9,2724.8,0.05045428]
[1729461654221,0.29366,2724.6,2724.1,3.50151]
[1729461654519,1.90885665,2724.2,2724.1,3.2078]
[1729461654910,1.90885665,2724.2,2724.1,3.50151]
[1729461656117,1.90885665,2724.2,2724.1,3.2078]
[1729461656323,1.90885665,2724.2,2724.1,3.50151]
[1729461656821,1.90885665,2724.2,2724.1,3.2078]
[1729461657024,2.20255665,2724.2,2723.7,0.29375]
[1729461657326,1.90885665,2723.8,2723.7,0.29375]
[1729461657519,1.90885665,2723.8,2723.6,3.2078]
[1729461657718,1.90885665,2723.8,2723.3,1.703]
[1729461657719,1.90885665,2723.7,2723.5,0.29377]
[1729461657924,1.90885665,2723.6,2723.5,0.29377]
[1729461659312,1.90885665,2723.6,2723.3,3.2078]
[1729461659519,3.19542,2724.8,2720.1,0.18372828]
[1729461659520,5.11665665,2723.4,2722.5,3.2078]
[1729461659722,2.2746,2724.7,2722.6,0.29387]
[1729461659723,1.90885665,2722.8,2722.6,0.29387]
[1729461660231,1.90885665,2722.8,2722.5,0.29388]
[1729461660521,3.2078,2722.9,2722.8,0.29385]
[1729461663220,3.5016,2723.3,2722.8,0.29385]
[1729461663425,5.11665665,2723.1,2722.9,0.29384]
[1729461664024,5.11665665,2723.1,2722.8,0.29385]
[1729461664224,5.11665665,2723.1,2722.9,0.29384]
[1729461664425,5.11665665,2723.1,2722.8,0.29385]
[1729461664619,5.11665665,2723.1,2722.5,1.703]
[1729461664620,1.90885665,2722.8,2722.4,1.635]
[1729461664815,1.90885665,2722.8,2722.7,0.29387]
[1729461665223,1.90885665,2722.8,2722.6,0.29387]
[1729461665937,1.90885665,2722.8,2722.6,0.29388]
[1729461666227,2.3978,2723.8,2722.8,0.29385]
[1729461666228,3.2078,2722.9,2722.8,0.29385]
[1729461667115,3.50161,2723.2,2722.8,0.29385]
[1729461667319,1.90885665,2723.0,2722.5,4.19983434]
[1729461667730,1.90885665,2723.0,2722.8,0.29385]
[1729461669423,1.90885665,2723.0,2722.5,4.19983434]
[1729461669629,3.2078,2722.9,2722.5,4.19983434]
[1729461669833,3.2078,2722.9,2722.8,0.29384]
[1729461670229,3.2078,2722.9,2722.8,3.96664]
[1729461670825,3.2078,2723.4,2723.1,0.29382]
[1729461671023,1.90885665,2723.3,2723.0,0.29383]
[1729461671432,1.90885665,2723.3,2722.8,3.98741354]
[1729461671628,1.90885665,2723.3,2722.9,0.29384]
[1729461672035,1.90885665,2723.3,2723.0,0.29383]
[1729461672333,1.90885665,2723.2,2723.0,0.29383]
[1729461672730,5.11665665,2723.2,2722.7,0.18177274]
[1729461673027,5.11665665,2723.2,2722.9,0.29384]
[1729461673234,1.90885665,2723.1,2722.9,0.29384]
[1729461673423,1.90885665,2723.1,2722.7,0.18177274]
[1729461673731,1.90885665,2723.1,2723.0,0.29383]
[1729461673938,1.90885665,2723.1,2722.9,0.29384]
[1729461674236,1.90885665,2723.1,2723.0,0.29383]
[1729461675123,1.90885665,2723.1,2722.9,0.29384]
[1729461675323,1.90885665,2723.1,2722.7,0.29386]
[1729461675324,2.20267665,2723.1,2722.7,0.29386]
[1729461675628,3.2078,2722.9,2722.8,0.29385]
[1729461677332,5.41049665,2722.9,2722.8,0.29863244]
[1729461677632,5.41049665,2722.9,2722.8,0.11485863]
[1729461677835,5.41049665,2722.9,2722.5,0.29388]
[1729461678134,5.41049665,2722.9,2722.6,0.29865456]
[1729461678434,3.2078,2722.9,2722.7,0.64325655]
[1729461678738,3.2078,2722.9,2722.8,0.64325655]
[1729461678739,3.50164,2722.9,2722.8,0.64325655]
[1729461679232,3.50164,2722.9,2722.8,0.86124822]
[1729461679233,5.41049665,2722.9,2722.8,0.86124822]
[1729461679736,5.41049665,2722.9,2722.8,0.59731057]
[1729461680133,5.41049665,2722.9,2722.8,0.82705752]
[1729461681127,5.41049665,2722.9,2722.8,0.59731057]
[1729461681832,3.2078,2722.9,2722.4,0.03444384]
[1729461682035,4.59972576,2722.5,2721.6,0.29397]
[1729461682228,1.39192576,2721.8,2721.7,0.68942919]
[1729461682430,1.39192576,2721.8,2721.7,0.22980837]
[1729461682936,1.68588576,2721.8,2721.7,0.22980837]
[1729461683133,0.29398,2721.7,2721.2,0.29402]
[1729461683437,4.59972576,2721.4,2720.8,3.49015712]
[1729461683631,3.2078,2721.4,2721.3,0.29402]
[1729461684036,3.2078,2721.4,2721.3,3.96842]
[1729461684631,3.2078,2721.4,2721.3,3.6744]
[1729461685339,3.2078,2721.4,2721.3,3.96842]
[1729461687242,4.59972576,2721.4,2721.2,0.29403]
[1729461687540,1.39192576,2721.3,2721.2,0.29403]
[1729461688239,1.39192576,2721.3,2720.7,1.5]
[1729461688538,11.96139359,2723.7,2720.6,3.2078]
[1729461688539,1.39192576,2721.0,2720.6,3.2078]
[1729461688747,1.39192576,2721.0,2720.6,4.7078]
[1729461689239,1.39192576,2720.9,2720.6,4.7078]
[1729461690536,1.39192576,2720.9,2720.2,2.527]
[1729461690537,1.39192576,2720.7,2720.2,4.7078]
[1729461691139,1.39192576,2720.7,2720.2,3.2078]
[1729461691332,4.59972576,2720.3,2719.8,0.18282749]
[1729461691538,4.59972576,2720.3,2719.5,3.2078]
[1729461691539,1.39192576,2720.1,2719.5,3.2078]
[1729461691739,1.39192576,2720.1,2719.7,4.02011031]
[1729461691939,1.39192576,2720.1,2719.8,0.18277232]
[1729461692142,1.39192576,2720.1,2719.6,5.52011031]
[1729461692143,1.39192576,2720.1,2719.6,1.5]
[1729461692540,1.39192576,2720.1,2719.7,3.98159465]
[1729461693039,1.39192576,2720.1,2719.7,5.48159465]
[1729461693941,1.39192576,2720.1,2719.7,3.98159465]
[1729461694531,1.39192576,2719.9,2719.7,3.98159465]
[1729461694841,1.39192576,2719.9,2719.6,0.1878289]
[1729461695637,1.39192576,2719.8,2719.5,0.24013326]
[1729461695940,1.39192576,2719.8,2719.4,1.433]
[1729461696145,1.39192576,2719.8,2719.4,1.61888078]
[1729461697049,1.39192576,2719.8,2719.4,0.18588078]
[1729461697237,3.2078,2720.0,2719.1,3.45716581]
[1729461697238,3.2078,2719.7,2719.2,1.433]
[1729461697444,4.59972576,2719.7,2719.2,1.433]
[1729461697647,4.59972576,2719.7,2719.2,5.6961961]
[1729461697940,4.59972576,2719.7,2719.1,3.2078]
[1729461697941,1.39192576,2719.4,2719.1,3.2078]
[1729461698150,3.2078,2719.7,2719.1,3.2078]
[1729461698151,1.39192576,2719.2,2719.1,3.2078]
[1729461698635,3.2078,2719.7,2719.1,6.8854]
[1729461698844,1.39192576,2719.5,2719.1,3.2078]
[1729461700341,1.39192576,2719.5,2719.4,0.29422]
[1729461708957,3.2078,2719.7,2719.3,1.364]
[1729461709161,1.39192576,2719.6,2719.5,0.2942]
[1729461709361,4.59972576,2719.7,2719.3,1.364]
[1729461709659,2.487,2720.6,2719.6,3.2078]
[1729461709855,3.2078,2720.8,2720.7,0.29408]
[1729461711155,2.3927,2721.2,2720.7,0.29408]
[1729461711156,3.2078,2721.2,2721.1,0.29404]
[1729461711360,3.2078,2721.2,2721.1,3.96924]
[1729461711550,3.2078,2721.2,2721.1,7.94994815]
[1729461711751,3.2078,2721.6,2721.1,7.65590815]
[1729461712055,3.2078,2721.9,2721.7,0.29397]
[1729461712357,2.3135,2722.2,2721.3,3.2078]
[1729461712358,3.2078,2722.2,2721.8,1.65796]
[1729461712563,4.59972576,2722.2,2722.1,0.29393]
[1729461713050,4.59972576,2722.2,2722.0,0.18729147]
[1729461713051,1.39192576,2722.2,2722.0,0.48122147]
[1729461713254,7.1404,2723.2,2722.0,0.48122147]
[1729461713255,1.39192576,2722.1,2722.0,0.48122147]
[1729461713555,1.39192576,2722.1,2721.9,0.29394]
[1729461713760,1.39192576,2722.0,2721.9,0.29394]
[1729461714055,1.39192576,2722.0,2721.9,1.364]
[1729461714260,3.2078,2722.5,2721.9,5.0376]
[1729461714460,1.39192576,2722.4,2722.0,0.18370492]
[1729461714764,1.39192576,2722.4,2722.3,0.29391]
[1729461715057,3.2078,2722.9,2722.8,0.29385]
[1729461715248,4.59972576,2722.9,2722.8,1.65785]
[1729461715851,1.39192576,2722.9,2722.8,1.65785]
[1729461716046,5.5213,2723.2,2723.1,0.29382]
[1729461716047,3.2078,2723.2,2723.1,0.29382]
[1729461716558,4.59972576,2723.2,2723.1,0.29382]
[1729461717257,4.59972576,2723.2,2722.5,3.45209366]
[1729461717459,1.39192576,2723.0,2722.6,1.364]
[1729461717656,1.39192576,2723.0,2722.8,0.29385]
[1729461718861,1.39192576,2723.0,2722.6,1.54973848]
[1729461719156,1.39192576,2722.8,2722.6,0.18573848]
[1729461719358,1.39192576,2722.8,2722.7,5.19442592]
[1729461719554,1.39192576,2722.8,2722.7,1.363]
[1729461721459,3.2078,2723.2,2722.7,5.0358]
[1729461721662,1.39192576,2723.1,2722.7,5.56762551]
[1729461725260,1.39192576,2723.0,2722.7,5.56762551]
[1729461726865,1.39192576,2723.0,2722.8,1.59485]
[1729461727062,1.39192576,2722.9,2722.8,1.59485]
[1729461728563,1.39192576,2722.9,2722.8,1.59385]
[1729461730663,1.39192576,2722.9,2722.8,0.29385]
[1729461730866,1.39192576,2722.9,2722.8,1.59385]
[1729461732468,1.39192576,2722.9,2722.7,1.3]
[1729461732669,1.39192576,2722.6,2722.5,1.3]
[1729461733169,1.39192576,2722.6,2722.4,1.3]
[1729461733368,3.2078,2722.7,2722.5,1.3]
[1729461733869,1.39192576,2722.6,2722.5,1.3]
[1729461734462,1.39192576,2722.6,2722.5,1.52889]
[1729461735075,3.2078,2723.1,2723.0,0.29383]
[1729461735569,4.59972576,2723.1,2723.0,0.29383]
[1729461736964,4.766,2723.6,2723.0,3.672]
[1729461736965,7.9738,2723.6,2723.0,3.672]
[1729461737164,1.39192576,2723.3,2723.2,0.29381]
[1729461737368,7.9738,2723.6,2723.2,1.07807424]
[1729461737564,0.29379,2723.5,2723.2,1.07807424]
[1729461737763,7.9738,2723.6,2723.2,1.07807424]
[1729461738171,7.9738,2723.6,2723.2,1.37188424]
[1729461738368,7.9738,2723.6,2723.3,0.2938]
[1729461738569,7.9738,2723.6,2723.2,1.07807424]
[1729461738971,7.9738,2723.6,2723.2,1.37188424]
[1729461739366,7.9738,2723.6,2723.4,0.29379]
[1729461739571,7.9738,2723.6,2723.2,1.07807424]
[1729461739772,7.9738,2723.6,2723.4,0.29379]
[1729461742472,7.9738,2723.6,2723.2,1.07807424]
[1729461742666,3.2078,2724.0,2723.9,0.29374]
[1729461742878,3.2078,2724.0,2723.9,1.52874]
[1729461743385,3.2078,2724.7,2723.9,9.00633371]
[1729461743569,3.2078,2724.7,2724.6,0.29366]
[1729461743875,3.2078,2725.0,2724.6,1.235]
[1729461744071,3.2078,2725.0,2724.7,0.29364]
[1729461744270,3.2078,2725.7,2724.7,7.55663467]
[1729461744577,3.2078,2725.7,2725.5,0.29356]
[1729461744768,3.2078,2725.7,2725.6,1.235]
[1729461744970,3.2078,2726.3,2725.6,4.9038]
[1729461745175,3.2078,2726.6,2725.8,3.2078]
[1729461745377,3.2078,2726.6,2725.6,12.96024807]
[1729461745378,3.2078,2727.2,2726.6,0.29344]
[1729461745574,3.2078,2727.2,2727.1,0.29339]
[1729461745774,3.2078,2727.2,2727.1,3.96059]
[1729461745972,3.2078,2727.2,2727.1,8.98770438]
[1729461746176,0.73295,2729.1,2727.1,8.98770438]
[1729461746177,3.2078,2729.3,2727.2,3.6664]
[1729461746375,3.2078,2729.3,2728.3,3.2078]
[1729461746376,1e-08,2728.5,2728.3,3.2078]
[1729461746572,1e-08,2728.5,2727.3,1.234]
[1729461746573,1e-08,2728.5,2727.6,3.2078]
[1729461746974,1e-08,2728.5,2727.3,1.234]
[1729461746975,3.6656,2728.4,2727.3,4.4418]
[1729461747176,0.29332,2727.8,2727.7,4.03864552]
[1729461747475,3.2078,2728.3,2727.3,3.2078]
[1729461747674,3.2078,2728.0,2727.0,1.234]
[1729461747877,0.29337,2727.3,2727.0,1.234]
[1729461748180,3.2078,2727.8,2727.0,1.234]
[1729461748371,0.29337,2727.3,2726.9,3.2078]
[1729461748875,3.2078,2727.4,2726.9,3.2078]
[1729461748876,3.6672,2727.2,2726.9,3.2078]
[1729461749176,0.2934,2727.0,2726.9,3.2078]
[1729461749576,0.29339,2727.1,2726.9,3.2078]
[1729461749879,3.9606,2727.0,2726.9,3.2078]
[1729461750082,0.2934,2727.0,2726.9,3.2078]
[1729461750281,3.9606,2727.0,2726.9,3.2078]
[1729461751368,3.6672,2727.0,2726.9,3.2078]
[1729461751574,3.2078,2727.4,2726.9,3.2078]
[1729461751769,2.4366,2727.6,2726.9,3.2078]
[1729461751971,2.4366,2727.6,2727.2,3.2078]
[1729461752372,2.4366,2727.6,2727.2,3.50117]
[1729461752573,2.4366,2727.6,2727.5,3.2078]
[1729461752780,2.3843,2727.9,2727.5,3.2078]
[1729461752980,2.412,2727.8,2727.5,3.2078]
[1729461753681,0.29332,2727.8,2727.5,3.2078]
[1729461753987,2.3843,2727.9,2727.5,3.2078]
[1729461754280,2.412,2728.3,2727.8,3.2078]
[1729461754480,7.63190114,2728.8,2728.1,3.2078]
[1729461754481,0.29322,2728.7,2728.1,3.2078]
[1729461754690,0.2932,2728.9,2728.4,3.2078]
[1729461755180,5.561,2729.5,2728.4,3.2078]
[1729461755181,0.29316,2729.3,2728.4,3.2078]
[1729461755385,3.2078,2729.5,2728.4,17.07370237]
[1729461755676,3.2078,2729.5,2729.0,3.2078]
[1729461755868,3.2078,2729.5,2728.4,5.39629035]
[1729461755869,2.2,2730.0,2729.3,3.2078]
[1729461756073,2.2,2730.0,2729.4,1.234]
[1729461756385,0.23215199,2730.3,2729.4,1.234]
[1729461756386,3.2078,2732.7,2730.3,3.2078]
[1729461756580,3.2078,2733.7,2732.4,2.27492]
[1729461756775,3.2078,2733.7,2733.0,3.2078]
[1729461756776,0.29269,2733.6,2733.0,3.2078]
[1729461756979,0.29269,2733.6,2732.5,0.29281]
[1729461756980,3.2078,2733.7,2733.3,3.2078]
[1729461757284,3.6562,2735.4,2733.6,3.2078]
[1729461757285,3.45440602,2734.9,2733.6,3.2078]
[1729461757487,0.73043,2738.5,2738.0,9.62e-06]
[1729461757687,0.73068,2737.6,2736.0,3.2078]
[1729461757869,3.2078,2736.9,2736.2,2.3555]
[1729461758077,0.29247,2735.7,2735.6,3.2078]
[1729461758372,3.2078,2736.6,2735.6,3.2078]
[1729461758684,2.3894,2739.9,2735.6,3.2078]
[1729461758685,3.2078,2737.6,2736.1,3.2078]
[1729461758877,2.3361,2739.0,2736.7,3.2078]
[1729461758878,3.2078,2737.7,2736.7,3.2078]
[1729461759087,3.2078,2737.7,2733.4,2.4062]
[1729461759088,0.73049,2738.3,2736.2,3.96672651]
[1729461759089,0.2924,2736.3,2736.2,3.96672651]
[1729461759398,0.2924,2736.3,2735.0,3.2078]
[1729461759399,3.2078,2736.3,2735.0,3.2078]
[1729461759684,3.2078,2736.3,2733.5,0.3656]
[1729461759685,0.18289149,2737.8,2734.4,3.2078]
[1729461759686,0.29254,2735.0,2734.4,3.2078]
[1729461759892,3.2078,2735.6,2734.9,3.2078]
[1729461760075,0.29254,2735.0,2734.9,3.2078]
[1729461760274,0.2926,2734.5,2734.4,3.2078]
[1729461760479,3.2078,2735.1,2734.4,3.2078]
[1729461760681,0.2926,2734.5,2734.4,3.2078]
[1729461761085,3.9494,2734.5,2734.4,3.2078]
[1729461761287,0.2926,2734.5,2734.4,3.2078]
[1729461761985,0.29256,2734.9,2734.4,3.2078]
[1729461762179,3.2078,2735.3,2732.5,0.3664]
[1729461762180,0.29256,2734.8,2734.7,3.2078]
[1729461762485,0.29254,2735.1,2734.7,3.2078]
[1729461762680,0.2925,2735.5,2735.0,3.2078]
[1729461762879,3.2078,2735.7,2735.3,3.2078]
[1729461763086,0.29247,2735.7,2735.3,3.2078]
[1729461763280,5.5439,2736.7,2735.6,3.2078]
[1729461763281,0.29247,2735.8,2735.6,3.2078]
[1729461763590,5.5439,2736.7,2735.6,3.2078]
[1729461763591,3.2078,2736.6,2735.6,3.2078]
[1729461763783,3.2078,2736.6,2735.9,3.2078]
[1729461763983,0.29244,2736.0,2735.9,3.2078]
[1729461764180,3.2078,2736.6,2734.1,0.3656]
[1729461764181,3.6544,2736.5,2735.3,3.2078]
[1729461764383,0.29248,2735.7,2735.3,3.2078]
[1729461764590,0.29246,2735.8,2735.3,3.2078]
[1729461764886,3.2078,2736.4,2735.6,3.2078]
[1729461765077,0.29244,2736.0,2735.4,3.2078]
[1729461765284,3.2078,2736.4,2735.3,3.2078]
[1729461765484,0.29249,2735.5,2735.3,3.2078]
[1729461765788,3.2078,2736.4,2735.3,3.2078]
[1729461765789,0.29248,2735.7,2735.3,3.2078]
[1729461765982,3.2078,2736.4,2735.3,3.2078]
[1729461766188,3.2078,2736.0,2735.3,3.2078]
[1729461766391,3.2078,2736.0,2735.0,3.2078]
[1729461766685,2.3361,2736.7,2735.0,3.2078]
[1729461766686,3.2078,2735.4,2735.0,3.2078]
[1729461766895,0.29253,2735.1,2735.0,3.2078]
[1729461767587,0.29252,2735.2,2735.0,3.2078]
[1729461767781,0.29253,2735.1,2735.0,3.2078]
[1729461769090,3.94853,2735.1,2735.0,3.2078]
[1729461769486,3.94853,2735.1,2735.0,2.5356]
[1729461769786,3.656,2735.1,2734.8,3.2078]
[1729461769990,0.29265,2734.1,2734.0,3.2078]
[1729461770491,0.0012599,2736.0,2734.0,15.67173192]
[1729461770700,0.0012599,2736.0,2735.5,3.2078]
[1729461770885,0.0012599,2736.0,2734.2,6.106]
[1729461770886,0.0012599,2736.0,2735.8,3.2078]
[1729461771197,3.2078,2737.2,2735.9,5.57354153]
[1729461771393,0.29236,2736.7,2736.4,3.2078]
[1729461771587,0.29234,2736.9,2736.4,3.2078]
[1729461771780,0.29234,2736.9,2736.5,4.01924103]
[1729461772091,0.29235,2736.8,2736.7,3.2078]
[1729461772288,3.50011,2737.2,2736.7,4.8738]
[1729461772493,3.2078,2737.9,2737.1,3.2078]
[1729461772685,0.7305,2738.3,2736.8,4.8728]
[1729461772686,0.29234,2737.0,2736.8,4.8728]
[1729461772885,0.29234,2736.9,2736.8,3.2078]
[1729461773084,0.7307,2737.5,2736.3,3.2078]
[1729461773281,0.29239,2736.4,2736.3,3.2078]
[1729461773484,0.29246,2735.9,2735.7,7.3738321]
[1729461773686,3.2078,2736.2,2735.1,3.2078]
[1729461773883,0.2925,2735.5,2735.4,3.2078]
[1729461774089,3.2078,2736.2,2735.4,3.2078]
[1729461774284,0.29249,2735.5,2735.4,3.2078]
[1729461774686,3.656,2735.5,2734.8,3.2078]
[1729461774882,0.73103,2736.3,2734.8,3.2078]
[1729461774883,0.29255,2734.9,2734.8,3.2078]
[1729461775191,0.29259,2734.6,2734.4,3.2078]
[1729461775398,3.2078,2735.3,2734.4,3.2078]
[1729461775991,0.29259,2734.6,2734.4,3.2078]
[1729461776190,0.2926,2734.5,2734.4,3.2078]
[1729461776688,0.29266,2734.0,2733.8,3.2078]
[1729461776898,3.1753,2734.7,2733.8,3.2078]
[1729461777195,0.29266,2733.9,2733.8,3.2078]
[1729461778195,3.2078,2734.4,2733.4,3.2078]
[1729461778389,0.2927,2733.5,2733.4,3.2078]
[1729461779089,0.29275,2733.1,2733.0,3.2078]
[1729461779994,0.29272,2733.4,2733.0,6.867]
[1729461780297,3.2078,2735.0,2733.3,3.2078]
[1729461780489,3.2078,2734.7,2733.6,3.2078]
[1729461780688,0.29263,2734.2,2733.9,3.2078]
[1729461781000,0.29255,2734.9,2734.0,3.85960077]
[1729461781197,3.2078,2735.6,2734.5,3.2078]
[1729461781390,3.2078,2735.6,2734.8,3.2078]
[1729461781585,0.29255,2735.0,2734.8,3.2078]
[1729461781793,3.2078,2735.6,2734.8,3.2078]
[1729461781794,0.29252,2735.2,2734.8,3.2078]
[1729461782097,0.29253,2735.2,2734.9,4.2251266]
[1729461782297,3.2078,2735.6,2734.8,3.2078]
[1729461782792,0.2926,2734.5,2734.4,3.2078]
[1729461783189,0.2926,2734.5,2734.0,1.665]
[1729461783190,3.2078,2735.3,2734.1,3.2078]
[1729461783388,3.2078,2735.3,2734.2,3.2078]
[1729461783389,0.73132,2735.2,2734.2,3.2078]
[1729461783791,0.73132,2735.2,2734.6,3.2078]
[1729461783998,0.29258,2734.7,2734.6,3.2078]
[1729461784484,0.73132,2735.2,2734.2,3.2078]
[1729461784692,0.29262,2734.3,2734.2,3.2078]
[1729461785195,0.29262,2734.3,2731.9,2.4692]
[1729461785196,7.59696,2734.3,2733.2,3.2078]
[1729461785400,0.29271,2733.5,2733.2,3.2078]
[1729461785988,3.93936,2734.3,2733.2,3.2078]
[1729461786287,0.29273,2733.3,2733.2,3.2078]
[1729461786684,0.29276,2733.0,2732.9,3.2078]
[1729461787787,3.2078,2733.7,2732.9,6.867]
[1729461788101,2.3036,2734.0,2733.3,3.2078]
[1729461788102,5.5114,2734.0,2733.3,3.2078]
[1729461788291,3.2078,2734.0,2733.3,3.2078]
[1729461788489,3.2078,2734.2,2733.4,4.11764055]
[1729461788796,0.29269,2733.7,2733.4,4.11764055]
[1729461789096,3.2078,2734.2,2733.4,4.11764055]
[1729461789493,3.50043,2734.3,2733.7,0.29267]
[1729461789699,0.29262,2734.4,2733.9,3.2078]
[1729461790096,0.29262,2734.4,2734.0,7.66604212]
[1729461790295,0.29259,2734.6,2734.1,3.6576]
[1729461790488,0.29258,2734.7,2734.2,3.2078]
[1729461790698,3.2078,2734.8,2734.2,7.43955589]
[1729461790997,0.2926,2734.5,2734.2,7.43955589]
[1729461791395,0.2926,2734.5,2734.2,11.09635589]
[1729461791604,0.29257,2734.8,2734.3,3.94942]
[1729461791801,0.29257,2734.8,2734.5,3.2078]
[1729461792002,3.2078,2735.2,2734.5,3.2078]
[1729461792296,1.02387,2735.1,2734.4,3.2078]
[1729461792508,0.29263,2734.2,2734.1,3.2078]
[1729461792687,3.2078,2734.4,2733.8,3.2078]
[1729461792892,3.2078,2734.1,2733.4,3.2078]
[1729461793097,3.2078,2734.7,2733.6,3.2078]
[1729461793294,3.2078,2734.7,2733.9,3.2078]
[1729461793700,0.29264,2734.2,2733.9,3.2078]
[1729461793995,3.2078,2734.7,2733.9,3.2078]
[1729461794202,0.29265,2734.0,2733.9,3.2078]
[1729461794398,3.93927,2734.7,2733.9,3.2078]
[1729461794399,3.2078,2734.7,2733.9,3.2078]
[1729461794697,0.29265,2734.0,2733.9,3.2078]
[1729461795199,0.29265,2734.1,2733.9,6.8654]
[1729461795401,0.29265,2734.1,2733.9,3.2078]
[1729461795597,3.2078,2734.7,2733.9,3.2078]
[1729461795791,0.29265,2734.0,2733.9,3.2078]
[1729461796001,0.29264,2734.1,2733.9,3.2078]
[1729461796193,3.2078,2734.7,2733.4,3.2078]
[1729461796397,3.93938,2734.3,2733.4,3.2078]
[1729461796598,3.2078,2734.3,2733.4,3.2078]
[1729461796909,0.2927,2733.5,2733.4,3.2078]
[1729461798513,0.73158,2734.2,2733.4,3.2078]
[1729461798514,3.2078,2735.0,2733.4,10.72633229]
[1729461798798,1.67040999,2735.0,2734.5,3.2078]
[1729461799002,0.29259,2734.6,2734.5,3.2078]
[1729461799208,1.67040999,2735.0,2734.5,3.2078]
[1729461799407,2.4989,2735.5,2734.5,3.2078]
[1729461799408,0.2925,2735.5,2734.9,3.2078]
[1729461799609,3.75921,2737.2,2734.5,5.6435102]
[1729461799610,3.2078,2737.4,2735.2,3.2078]
[1729461799907,3.2078,2737.9,2736.5,3.2078]
[1729461800104,0.29242,2737.4,2736.8,3.2078]
[1729461800304,1.83390785,2738.0,2737.1,3.2078]
[1729461800305,0.29242,2737.5,2737.1,3.2078]
[1729461800600,1.83390785,2738.0,2737.0,3.2078]
[1729461800804,0.29242,2737.5,2737.2,3.8110377]
[1729461800992,0.29242,2737.7,2737.4,3.2078]
[1729461801198,3.2078,2738.3,2737.4,3.2078]
[1729461801397,0.29242,2737.5,2736.8,1.708]
[1729461801594,3.2078,2738.3,2737.2,3.2078]
[1729461801798,3.2078,2738.6,2737.7,3.2078]
[1729461802006,3.2078,2738.9,2738.4,3.2078]
[1729461802509,3.47565323,2739.2,2738.5,7.59220669]
[1729461802810,3.47565323,2739.2,2738.5,3.94100669]
[1729461802811,0.29211,2739.1,2738.5,3.94100669]
[1729461802997,0.55995323,2739.2,2738.9,3.2078]
[1729461803305,0.55995323,2739.2,2739.0,7.77915789]
[1729461803517,0.26785323,2739.2,2739.0,7.77915789]
[1729461803806,3.27461659,2742.0,2738.5,2.91538]
[1729461803807,3.2078,2739.4,2738.5,2.91538]
[1729461804000,3.2078,2738.8,2737.9,3.2078]
[1729461804195,0.73033,2738.9,2737.6,4.12795789]
[1729461804394,0.73033,2738.9,2737.5,3.2078]
[1729461804395,3.2078,2738.9,2738.0,4.13107125]
[1729461804598,0.73022,2739.3,2737.6,3.2078]
[1729461804599,0.29222,2738.1,2737.6,3.2078]
[1729461804803,5.008,2739.9,2737.9,7.33887125]
[1729461804804,3.2078,2739.0,2737.9,7.33887125]
[1729461805000,0.29219,2738.3,2738.1,4.13107125]
[1729461805203,3.93811,2739.0,2737.8,3.2078]
[1729461805510,3.2078,2738.7,2737.6,3.80467791]
[1729461805699,0.29222,2738.0,2737.9,3.2078]
[1729461806003,0.73048,2738.3,2737.4,3.2078]
[1729461806311,3.2078,2737.9,2736.9,3.2078]
[1729461806610,0.29227,2737.6,2737.5,7.04902416]
[1729461806903,3.2078,2738.3,2737.0,3.2078]
[1729461807105,0.29232,2737.1,2737.0,3.2078]